Cogmind - Beta 12 @@@ ROGUE MODE // 2023.03.04 @ 08:40:46 Player: Shin Result: Destroyed by as-09355 with Assembled Heavy Rifle Performance ------------- Evolutions (0) 0 Regions Visited (2) 400 Robots Destroyed (10) 50 Value Destroyed (192) 192 Prototype IDs (2) 40 Alien Tech Used (0) 0 Bonus (56) 56 TOTAL SCORE: 738 Bonus ------- Follower Combat Kills 56 Cogmind --------- Core Integrity 0/250 Matter 225/300 Energy 160/250 System Corruption 0% Temperature Cool (0) Movement Treading (160) Location -10/Mines Parts ------- > --- POWER (1) -------- Ion Engine > --- PROPULSION (2) --- Light Treads Light Treads > --- UTILITY (2) ------ Large Storage Unit > --- WEAPON (2) ------- Light Assault Rifle > --- INVENTORY (15) --- Aluminum Leg Compact Wheel Medium Matter Pod (0) Grenade Launcher Mining Laser Peak State ------------ > --- POWER ------------ Light Ion Engine > --- PROPULSION ------- Aluminum Leg Aluminum Leg > --- UTILITY ---------- Large Storage Unit Light Armor Plating > --- WEAPON ----------- Light Cannon Light Cannon > --- INVENTORY -------- Ion Engine Light Treads Light Treads Aluminum Leg Compact Wheel Medium Matter Pod Light Assault Rifle Light Assault Rifle Grenade Launcher Mining Laser [Rating: 8] Favorites ----------- Power Light Ion Engine Engine Light Ion Engine Propulsion Aluminum Leg Treads Light Treads Leg Aluminum Leg Utility Light Armor Plating Storage Large Storage Unit Protection Light Armor Plating Weapon Light Cannon Energy Gun EM Pulse Gun Ballistic Gun Light Assault Rifle Ballistic Cannon Light Cannon Launcher Grenade Launcher Build | -11 -10 -10 ------- Run | Jun Mat Min Slots Evolved . | . . . Power . | . . . Propulsion . | . . . Utility . | . . . Weapon . | . . . Parts Attached 11 | . 6 5 Power 1 | . . 1 Engine 1 | . . 1 Core . | . . . Reactor . | . . . Propulsion 2 | . . 2 Treads 2 | . . 2 Leg . | . . . Wheel . | . . . Hover . | . . . Flight . | . . . Utility 2 | . 2 . Device . | . . . Storage 1 | . 1 . Processor . | . . . Hackware . | . . . Protection 1 | . 1 . Artifact . | . . . Weapon 6 | . 4 2 Energy Gun . | . . . Energy Cannon . | . . . Ballistic Gun 3 | . 1 2 Ballistic Cannon 2 | . 2 . Launcher 1 | . 1 . Special Weapon . | . . . Impact Weapon . | . . . Slashing Weapon . | . . . Piercing Weapon . | . . . Special Melee Weapon . | . . . Unidentified Prototypes . | . . . Parts Lost 7 | . . 7 Power 1 | . . 1 Propulsion 2 | . . 2 Utility 1 | . . 1 Weapon 3 | . . 3 Highest Loss Streak 7 | . . 7 To Critical Strikes . | . . . Average Slot Usage (%) 94 | . 91 97 Engine 13 | . 14 13 Leg 27 | . 28 26 Storage 14 | . 14 14 Protection 9 | . 6 12 Ballistic Gun 4 | . 6 1 Ballistic Cannon 21 | . 18 26 Naked Turns . | . . . Heaviest Build 32 | 11 32 32 Greatest Support 20 | 20 20 20 Greatest Overweight (x) 3 | . 1 3 Average Overweight (x) . | . . 1 Largest Inventory Capacity 15 | 8 15 15 Average Capacity 12 | 8 9 15 Most Carried 10 | 6 9 10 Average Carried 8 | 6 7 9 Final Capacity 15 | 8 15 15 Final Carried 9 | 6 9 5 Class Distribution -------------------- 100% | Mutant Dominant Class ---------------- Mutant | -10/Materials Mutant | -10/Mines Resources | -11 -10 -10 ----------- Run | Jun Mat Min Matter Collected 365 | 200 165 . Remotely . | . . . Salvage Created 281 | . 275 6 Parts 21 | . 21 . Haulers Intercepted 1 | . 1 . Recyclers Shooed 2 | . 2 . Parts Field Recycled . | . . . Retrieved Matter . | . . . Parts Self-Destructed . | . . . Prevented . | . . . Kills | -11 -10 -10 ------- Run | Jun Mat Min Combat Hostiles Destroyed 7 | . 6 1 Guns 1 | . . 1 Cannons 3 | . 3 . AOE 3 | . 3 . Classes Destroyed 7 | . 6 1 Hauler 1 | . 1 . Recycler 1 | . 1 . Operator 1 | . 1 . Watcher 1 | . 1 . Swarmer 3 | . 3 . Grunt 3 | . 3 . Assembled 1 | . . 1 Best Kill Streak 4 | . 4 1 Combat Bots Only 3 | . 3 1 Max Kills in Single Turn 2 | . 2 1 Gunslinging . | . . . Exploded 2 | . 2 . Melee . | . . . Uniques/NPCs Destroyed . | . . . Combat | -11 -10 -10 -------- Run | Jun Mat Min Damage Taken 1195 | . 132 1063 Core 254 | . 27 227 Absorbed by Shields . | . . . Core Remaining (%) 100 | 100 . . Volleys Fired 27 | . 17 10 Largest 2 | . 2 2 Hottest 70 | . 70 70 Shots Fired 52 | . 32 20 Gun 16 | . 6 10 Cannon 34 | . 24 10 Launcher 2 | . 2 . Special . | . . . Kinetic 47 | . 27 20 Thermal . | . . . Explosive 2 | . 2 . Electromagnetic 3 | . 3 . Robot Hit Streak 5 | . 3 5 Robot Miss Streak 6 | . 4 6 Penetration Max . | . . . Secondary Targets 2 | . 1 1 Max Gunslinging Chain 1 | . 1 1 Shots Hit Robots 23 | . 13 10 Core Hits 17 | . 12 5 Critical Kills . | . . . Critical Parts Destroyed . | . . . Critical Strikes . | . . . Melee Attacks . | . . . Impact . | . . . Slashing . | . . . Piercing . | . . . Sneak Attacks . | . . . Combat Hostiles . | . . . Follow-up Attacks . | . . . Damage Inflicted 486 | . 361 125 Guns 68 | . 30 38 Cannons 259 | . 174 85 Explosions 157 | . 157 . Melee . | . . . Ramming 2 | . . 2 Kinetic 311 | . 188 123 Thermal . | . . . Explosive 157 | . 157 . Electromagnetic 16 | . 16 . Impact . | . . . Slashing . | . . . Piercing . | . . . Highest Corruption . | . . . Average Corruption . | . . . Corruption Purged . | . . . Corruption Blocked . | . . . Overload Shots . | . . . Overflow Damage . | . . . Projectiles . | . . . Explosions . | . . . Melee . | . . . Knockbacks 5 | . 1 4 Impact . | . . . Kinetic 4 | . 1 3 Secondary 1 | . . 1 Self-Inflicted Damage . | . . . Shots . | . . . Rammed . | . . . Targets Rammed 1 | . . 1 Kicked 1 | . . 1 Crushed . | . . . Highest Temperature 90 | . 90 90 Average Temperature 33 | . 25 51 Received Heat Transfer 110 | . 30 80 Siege Activations . | . . . Robots Corrupted . | . . . Combat Hostiles . | . . . Parts Fried . | . . . Impact Corruptions . | . . . Robots Melted . | . . . Combat Hostiles . | . . . Parts Melted . | . . . Heat Transferred . | . . . Parts Sabotaged . | . . . Parts Stolen . | . . . Parts Stripped . | . . . Power Chain Reactions . | . . . Missiles Intercepted . | . . . Alert | -11 -10 -10 ------- Run | Jun Mat Min Peak Influence 251 | . 251 203 Initial 97 | . . 97 Average 152 | . 145 162 Maximum Alert Level 1 | . 1 1 Low Security (%) 77 | 100 60 98 Level 1 22 | . 39 1 Level 2 . | . . . Level 3 . | . . . Level 4 . | . . . Level 5 . | . . . High Security . | . . . Max Security . | . . . Squads Dispatched 1 | . 1 . Investigation . | . . . Extermination . | . . . Reinforcement 1 | . 1 . Assault . | . . . Garrison . | . . . Intercept . | . . . Searches Triggered . | . . . Construction Impeded . | . . . Haulers Reinforced . | . . . Active Scanning Responses . | . . . Cargo Convoy Interrupts . | . . . Stealth | -11 -10 -10 --------- Run | Jun Mat Min Distress Signals 3 | . 3 . Communications Jammed . | . . . Distress Signals . | . . . Times Spotted 36 | . 12 24 Peak Tracking Total 16 | . 4 16 Tactical Retreats 3 | . 1 2 Traps | -11 -10 -10 ------- Run | Jun Mat Min Traps Triggered . | . . . Indirectly . | . . . Trap Hack Attempts . | . . . Triggered . | . . . Disarmed . | . . . Reprogrammed . | . . . Reused . | . . . Traps Extracted . | . . . Installed . | . . . Triggered . | . . . Machines | -11 -10 -10 ---------- Run | Jun Mat Min Machines Disabled 2 | . 2 . Max in Single Turn 2 | . 2 . Machines Repaired . | . . . Machines Sabotaged . | . . . Overloaded Fab Kills . | . . . Hacking | -11 -10 -10 --------- Run | Jun Mat Min Machines Accessed 2 | . 2 . Terminals 2 | . 2 . Fabricators . | . . . Repair Stations . | . . . Recycling Units . | . . . Scanalyzers . | . . . Garrison Access . | . . . Total Hacks 9 | . 9 . Successful 6 | . 6 . Failed 3 | . 3 . Catastrophic 1 | . 1 . Database Lockouts . | . . . Manual 3 | . 3 . Terminals 9 | . 9 . Fabricators . | . . . Repair Stations . | . . . Recycling Units . | . . . Scanalyzers . | . . . Garrison Access . | . . . Terminal Hacks 4 | . 4 . Prototype ID Bank 1 | . 1 . Transport Status 1 | . 1 . Hauler Manifests 1 | . 1 . Zone Layout 1 | . 1 . Fabricator Hacks . | . . . Repair Station Hacks . | . . . Recycling Unit Hacks . | . . . Scanalyzer . | . . . Garrison Access Hacks . | . . . Unauthorized Hacks 2 | . 2 . Terminals 2 | . 2 . Botnet 2 | . 2 . Fabricators . | . . . Repair Stations . | . . . Recycling Units . | . . . Scanalyzers . | . . . Garrison Access . | . . . Data Cores Recovered 1 | . 1 . Used 1 | . 1 . Hacking Detections 2 | . 2 . Full Trace Events 1 | . 1 . Feedback Events . | . . . Feedback Blocked . | . . . Robot Schematics Acquired . | . . . Robots Built . | . . . Authchips . | . . . Time . | . . . Total Robot Build Rating . | . . . Part Schematics Acquired . | . . . Parts Built . | . . . Authchips . | . . . Time . | . . . Total Part Build Rating . | . . . Parts Repaired . | . . . Time . | . . . Parts Recycled . | . . . Recycled Matter . | . . . Retrieved Matter . | . . . Retrieved Components . | . . . Parts Scanalyzed . | . . . Part Schematics Acquired . | . . . Parts Damaged . | . . . Bothacking | -11 -10 -10 ------------ Run | Jun Mat Min Used RIF Installer . | . . . Robots Hacked . | . . . Non-combat . | . . . Combat . | . . . Robot Hacks Applied . | . . . Relay Couplers Released . | . . . Fabnet Peak Effective % . | . . . Robots Rewired . | . . . Allies Hacked . | . . . Hacks Repelled . | . . . Allies | -11 -10 -10 -------- Run | Jun Mat Min Total Allies 1 | . . 1 Largest Group 1 | . . 1 Highest-Rated Group 31 | . . 31 Highest-Rated Ally 31 | . . 31 Total Orders . | . . . Ally Attacks 16 | . . 16 Total Damage 229 | . . 229 Kills 4 | . . 4 Allies Corrupted . | . . . Allies Melted . | . . . Intel | -11 -10 -10 ------- Run | Jun Mat Min Robot Analysis Total . | . . . Derelict Logs Recovered . | . . . Drone Launches . | . . . Drone Recoveries . | . . . Exploration | -11 -10 -10 ------------- Run | Jun Mat Min Turns Passed 627 | 2 351 274 Spaces Moved 329 | 2 204 123 Core . | . . . Treads . | . . . Legs 329 | 2 204 123 Wheels . | . . . Hover . | . . . Flight . | . . . Fastest Speed 120 | 120 120 190 Average Speed 155 | 120 135 191 Slowest Speed 330 | 120 190 330 Overloaded Moves . | . . . Propulsion Burnouts . | . . . Robots Hopped . | . . . Cave-ins Triggered . | . . . Exploration Rate (%) 23 | 2 37 32 Regions Visited 2 Branch Regions 1 Pre-discovered Areas . | . . . Known Exits Taken . | . . . Unknown Exits Taken 2 | 1 1 . Scrap Searched . | . . . Spaces Dug . | . . . Terrain Destroyed 11 | . 11 . Melee . | . . . Projectile . | . . . AOE 11 | . 11 . Terrain Rammed . | . . . Walls Destroyed . | . . . Machines Disabled . | . . . Actions | -11 -10 -10 --------- Run | Jun Mat Min Total 394 | 1 250 143 Wait 14 | . 11 3 Move 327 | 1 203 123 Hop . | . . . Pick Up 9 | . 8 1 Fast Attach . | . . . Attach 8 | . 3 5 Detach . | . . . Swap 3 | . 3 . Drop 5 | . 5 . Fire 27 | . 17 10 Melee . | . . . Ram . | . . . Kick 1 | . . 1 Crush . | . . . Escape Stasis . | . . . Rewire . | . . . Trap . | . . . Miscellaneous . | . . . Route ------- -11/Junkyard -10/Materials -10/Mines (discovered 1 exit: [*Mat]) History --------- Turn | Location | Event 1 | -11/Junkyard | Discovered new exit (range 1) 3 | -11/Junkyard | Entered Materials 318 | -10/Materials | Build established: Mutant 319 | -10/Materials | Discovered new exit (range 11) 354 | -10/Materials | Entered Mines 357 | -10/Mines | Received a Mining Laser from a helpful Derelict 362 | -10/Mines | Met a Derelict bent on vengeance 452 | -10/Mines | Discovered new exit (range 5) 568 | -10/Mines | Assembled infested the area 573 | -10/Mines | Assisted by a Guerilla fighting off Assembled 614 | -10/Mines | Core integrity fell below 50% 626 | -10/Mines | Core integrity fell below 20% 628 | -10/Mines | Destroyed by as-09355 with Assembled Heavy Rifle Last Messages --------------- 00606_ Aluminum Leg destroyed. 00607_ as-61835 destroyed. 00607_ as-83943 destroyed. 00607_ as-86530 destroyed. 00607_ as-22483 destroyed. 00609_ Lgt. Armor Plating destroyed. 00609_ Lgt. Ion Engine destroyed. 00609_ as-78661 destroyed. 00609_ as-16455 destroyed. 00609_ Lgt. Cannon destroyed. 00611_ The unstable cave ceiling collapses. 00613_ Aluminum Leg destroyed. 00613_ D-53 Grenadier destroyed. 00615_ The unstable cave ceiling collapses. 00615_ D-53 Grenadier destroyed. 00618_ as-94840 destroyed. 00618_ Switching to secondary target: as-09355. 00619_ The unstable cave ceiling collapses. 00624_ U-05 Engineer lays Concrete. 00626_ Lgt. Assault Rifle destroyed. Map ----- +----------------------------------------------------+ | ??????###### #????????????????? | | ?????## ####?????????????? | | ?????# ^ #?????????????? | | ?????# #^ #?????????????? | | ??????# # #?????????????# | | ??????# ^^ # ######????????# | | ??????# ## #????????# | | ??????# #????????# | | ??????# ########## ##???????# | | ??????## < #????????## ##??????# | | ???????## #????????## #??????# | | ????????###??????#### #??????# | | ????????????????## ######## | | ???????????????## | | ???????????????# | | ???????????????## ## ###### | | ????????????????###### #????? | | ??####???????????????## ##???? | | ?## ##??????????????## ##??? | | ?# ##??####????????## #??? | | ?# ### ###???????# ##?? | | ??# #######?# ### | | ??# ! = #### | | ??# %=%] #?# # | | ??# = % # ### ## | | ??# @ = # " #?# | | ??## a% # #??# | | ???# # % ##??? | | ???# a # # ??? | | ???# ! # ## | | ???# %####=# aa #### ## ##### | | ??? [ ???=#? ###??## #? #???? | | ?? ???##? #????# #? #???? | | ?# ?????? #???# #?? ???? | | ?# ?????? !#??# #??#???? | | ?# ??????? =%#??# #??????? | | ?## ???????# != ?? #??????? | | ??## ???????? #???# #??????? | | ???# ???????????????# #??????? | | ???# ##???????????????# #??????? | | ???# ?????????????????# #??????? | | ???? ?????????????????? ???????? | | ?????????????????????????????????? | | ?????????????????????????????????? | | ?????????????????????????????????? | | ?????????????????????????????????? | | ?????????????????????????????????? | | ?????????????????????????????????? | | ?????????????????????????????????? | | ?????????????????????????????????? | +----------------------------------------------------+ Best States ------------- Heat Dissipation 25 Energy Generation 10 Energy Capacity 250 Matter Stores 300 Matter Capacity 300 Sight Range 16 Terrain Scan Density 10 Armor Coverage 150 Evasion (%) 55 Recoil Reduction 2 Item Schematics ----------------- None Robot Schematics ------------------ None Fabricated ------------ Nothing Alien Tech Used ----------------- None Achievements -------------- None Challenges ------------ None Game ------ Seed GlidesysReactionWeb Manual? 0 Play Time 00:10:28 Cumulative 96.3 hours Start 2023.03.04 @ 08:32:46 End 2023.03.04 @ 08:40:46 Sessions 1 Manual Loads 0 Difficulty Rogue Special Mode None Game No. 79 Rogue 79 Adventurer 0 Explorer 0 Win Type - Total 0 Types 0/0/0/0/0/0/0/0/0 Lore% 46 Gallery% 58 Achievement% 40 Wizard Run 0 Options --------- ASCII 0 Keyboard 0 Movement Arrows Keybinds 1 Fullscreen 0 Font 16/Terminus Map View 76x50 Tactical HUD 1 Map Filters NONE Filters NONE Steam 1 RUN: 6851a8c6-be95-40de-8262-38d5e3e3235c